[Event "XLIV Barbera del Valles-A 2022"]
[Site "Barbera del Valles"]
[Date "2022.07.04"]
[Round "1.1"]
[White "Alsina Leal, Daniel"]
[Black "Jul Perez, Alberto"]
[Result "1-0"]
[ECO "C06"]
[WhiteElo "2525"]
[BlackElo "2095"]
[Annotator "RC"]
[PlyCount "77"]
[EventDate "2022.07.04"]
[EventType "swiss"]
[EventCountry "ESP"]
[SourceTitle "playchess.com"]
[Source "ChessBase"]
[SourceQuality "1"]
[TimeControl "5400+30"]

1. e4 {[%emt 0:00:02]} e6 {[%emt 0:00:11]} 2. d4 {[%emt 0:00:24]} d5 {[%emt 0:00:09]} 3. Nd2 {[%emt 0:04:25]} Nf6 {[%emt 0:00:13]} 4. e5 {[%emt 0:00:14]} Nfd7 {[%emt 0:00:08]} 5. Bd3 {[%emt 0:00:06]} c5 {[%emt 0:00:27]} 6. c3 {[%emt 0:00:17]} Nc6 {[%emt 0:00:10]} 7. Ne2 {[%emt 0:00:11]} cxd4 {[%emt 0:00:33]} 8. cxd4 {[%emt 0:00:05]} f6 {[%emt 0:00:11]} 9. exf6 {[%emt 0:00:13]} Nxf6 {[%emt 0:00:08]} 10. O-O {[%emt 0:00:15]} Bd6 {[%emt 0:00:07]} 11. Nf3 {[%emt 0:00:14]} O-O {[%emt 0:01:03]} 12. Bf4 {[%emt 0:00:28]} Bxf4 {[%emt 0:03:08]} 13. Nxf4 {[%emt 0:01:44]} Ne4 {[%emt 0:00:20]} 14. Ne2 {[%emt 0:02:01]} Bd7 {[%emt 0:02:44]} 15. Ng3 {[%emt 0:05:20]} Nxg3 {[%emt 0:07:13]} 16. hxg3 {[%emt 0:02:02]} Qf6 {[%emt 0:03:42]} 17. Bb5 {[%emt 0:04:30]} Be8 {[%emt 0:19:45]} 18. Bxc6 {[%emt 0:02:01]} bxc6 {[%emt 0:03:22]} 19. Qd2 {[%emt 0:03:06]} Rb8 {[%emt 0:02:56]} 20. Rac1 {[%emt 0:01:10]} Rb5 {[%emt 0:08:21]} 21. Rc3 {[%emt 0:04:53]} Qe7 {[%emt 0:09:37]} 22. Rfc1 {[%emt 0:11:25]} Qb4 {[%emt 0:02:58]} 23. b3 {[%emt 0:01:25]} Rf5 {[%emt 0:11:16]} 24. Qe2 {[%emt 0:11:12]} Qd6 {[%emt 0:05:31]} 25. Ne5 {[%emt 0:05:07]} Rb6 {[%emt 0:02:22]} 26. Rc5 {[%emt 0:03:22]} h5 {[%emt 0:03:24]} 27. Qe3 {[%emt 0:03:01]} Ra6 {[%emt 0:04:21]} 28. R1c2 {[%emt 0:02:39]} Rb6 {[%emt 0:02:23]} 29. Qc3 {[%emt 0:03:45]} h4 {[%emt 0:01:13]} 30. gxh4 {[%emt 0:02:04]} Qe7 {[%emt 0:02:22]} 31. g3 {[%emt 0:01:27]} g5 {[%emt 0:02:33]} 32. hxg5 {[%emt 0:00:32]} Qxg5 {[%emt 0:00:27]} 33. Qe3 {[%emt 0:02:16]} Qh5 {[%emt 0:01:46]} 34. g4 {[%emt 0:02:52]} Rg5 {[%emt 0:00:05]} 35. f3 {[%emt 0:03:13]} Qh4 {[%emt 0:01:20]} 36. Rh2 {[%emt 0:01:41]} Qg3+ {[%emt 0:00:06]} 37. Kh1 {[%emt 0:03:23]} Rg7 {[%emt 0:00:24]} 38. Rcc2 {[%emt 0:02:40]} Rbb7 {[%emt 0:01:44]} 39. Rcg2 {[%emt 0:00:18]} 1-0

[Event "XLIV Barbera del Valles-A 2022"]
[Site "Barbera del Valles"]
[Date "2022.07.04"]
[Round "1.2"]
[White "Bakshi, Rutuja"]
[Black "Asis Gargatagli, Hipolito"]
[Result "0-1"]
[ECO "E62"]
[WhiteElo "2084"]
[BlackElo "2514"]
[Annotator "RC"]
[PlyCount "134"]
[EventDate "2022.07.04"]
[EventType "swiss"]
[EventCountry "ESP"]
[SourceTitle "playchess.com"]
[Source "ChessBase"]
[SourceQuality "1"]
[TimeControl "5400+30"]

1. d4 {[%emt 0:00:09]} Nf6 {[%emt 0:02:15]} 2. Nf3 {[%emt 0:00:14]} g6 {[%emt 0:00:13]} 3. g3 {[%emt 0:00:22]} Bg7 {[%emt 0:00:30]} 4. Bg2 {[%emt 0:00:01]} O-O {[%emt 0:00:09]} 5. O-O {[%emt 0:00:09]} d6 {[%emt 0:00:06]} 6. c4 {[%emt 0:00:24]} c6 {[%emt 0:00:09]} 7. Nc3 {[%emt 0:00:41]} Bf5 {[%emt 0:00:14]} 8. Nh4 {[%emt 0:07:07]} Be6 {[%emt 0:00:30]} 9. d5 {[%emt 0:01:50]} cxd5 {[%emt 0:00:19]} 10. cxd5 {[%emt 0:00:13]} Bd7 {[%emt 0:00:22]} 11. h3 {[%emt 0:04:42]} Qc8 {[%emt 0:22:48]} 12. Kh2 {[%emt 0:02:56]} b5 {[%emt 0:02:24]} 13. a3 {[%emt 0:07:56]} a5 {[%emt 0:03:05]} 14. e4 {[%emt 0:12:16]} Na6 {[%emt 0:27:27]} 15. Be3 {[%emt 0:05:42]} Qb7 {[%emt 0:09:27]} 16. f4 {[%emt 0:13:16]} b4 {[%emt 0:13:37]} 17. Ne2 {[%emt 0:02:21]} bxa3 {[%emt 0:00:17]} 18. bxa3 {[%emt 0:01:15]} Bb5 {[%emt 0:15:38]} 19. Rb1 {[%emt 0:03:00]} Qd7 {[%emt 0:00:00]} 20. Rf2 {[%emt 0:05:34]} Ba4 {[%emt 0:00:00]} 21. Qd2 {[%emt 0:02:44]} Rfc8 {[%emt 0:00:00]} 22. e5 {[%emt 0:04:18]} Rc2 {[%emt 0:00:00]} 23. Qd3 {[%emt 0:02:22]} Nc5 {[%emt 0:00:52]} 24. Bxc5 {[%emt 0:02:41]} Rxc5 {[%emt 0:00:03]} 25. exf6 {[%emt 0:01:53]} Bc2 {[%emt 0:00:05]} 26. Qe3 {[%emt 0:00:45]} Bxf6 {[%emt 0:00:31]} 27. Re1 {[%emt 0:01:45]} Qa4 {[%emt 0:00:07]} 28. Nf3 {[%emt 0:02:28]} Bb3 {[%emt 0:00:47]} 29. Nd2 {[%emt 0:03:19]} Bc2 {[%emt 0:01:13]} 30. Ne4 {[%emt 0:03:46]} Bxe4 {[%emt 0:00:05]} 31. Bxe4 {[%emt 0:00:09]} Rb8 {[%emt 0:00:03]} 32. Rf3 {[%emt 0:02:30]} Rb2 {[%emt 0:00:39]} 33. Kh1 {[%emt 0:00:56]} Rc4 {[%emt 0:01:47]} 34. Bd3 {[%emt 0:01:56]} Rb3 {[%emt 0:00:32]} 35. Qd2 {[%emt 0:01:24]} Qxa3 {[%emt 0:00:05]} 36. Bxc4 {[%emt 0:02:53]} Rxf3 {[%emt 0:00:04]} 37. Rc1 {[%emt 0:01:44]} Rf2 {[%emt 0:01:42]} 38. Qd3 {[%emt 0:00:47]} Qc5 {[%emt 0:00:50]} 39. Ba2 {[%emt 0:00:52]} Qb6 {[%emt 0:00:07]} 40. Rb1 {[%emt 0:00:28]} Qa7 {[%emt 0:00:09]} 41. g4 {[%emt 0:00:34]} h6 {[%emt 0:00:06]} 42. Bc4 {[%emt 0:00:16]} a4 {[%emt 0:00:04]} 43. Ng3 {[%emt 0:00:31]} Rxf4 {[%emt 0:00:04]} 44. Ne4 {[%emt 0:00:33]} Be5 {[%emt 0:00:05]} 45. Rf1 {[%emt 0:00:30]} Rxf1+ {[%emt 0:00:10]} 46. Qxf1 {[%emt 0:00:03]} a3 {[%emt 0:00:18]} 47. Qf2 {[%emt 0:00:35]} Qa4 {[%emt 0:00:18]} 48. Qe2 {[%emt 0:00:06]} Qb4 {[%emt 0:01:02]} 49. Kg2 {[%emt 0:00:49]} Qb1 {[%emt 0:00:15]} 50. Ba2 {[%emt 0:00:46]} Qa1 {[%emt 0:00:07]} 51. Nf2 {[%emt 0:00:40]} Bd4 {[%emt 0:00:06]} 52. Nd1 {[%emt 0:00:39]} Bb2 {[%emt 0:00:50]} 53. Bc4 {[%emt 0:00:33]} Be5 {[%emt 0:00:19]} 54. Qd2 {[%emt 0:00:26]} Qb1 {[%emt 0:00:15]} 55. Qe2 {[%emt 0:00:33]} Qc1 {[%emt 0:00:04]} 56. Ba2 {[%emt 0:00:22]} Qf4 {[%emt 0:00:04]} 57. Nf2 {[%emt 0:00:18]} Qh2+ {[%emt 0:00:08]} 58. Kf1 {[%emt 0:00:13]} Bd4 {[%emt 0:01:20]} 59. Qf3 {[%emt 0:00:42]} Bxf2 {[%emt 0:00:14]} 60. Qxf2 {[%emt 0:00:01]} Qxh3+ {[%emt 0:00:13]} 61. Qg2 {[%emt 0:01:03]} Qc3 {[%emt 0:01:58]} 62. Qe2 {[%emt 0:00:19]} Kg7 {[%emt 0:00:12]} 63. Kf2 {[%emt 0:00:25]} Kf6 {[%emt 0:00:32]} 64. Kg2 {[%emt 0:00:36]} Qb2 {[%emt 0:00:09]} 65. Qf2+ {[%emt 0:00:25]} Ke5 {[%emt 0:00:14]} 66. Kg3 {[%emt 0:00:36]} Qxf2+ {[%emt 0:00:12]} 67. Kxf2 {[%emt 0:00:02]} Kd4 {[%emt 0:00:09]} 0-1

[Event "XLIV Barbera del Valles-A 2022"]
[Site "Barbera del Valles"]
[Date "2022.07.04"]
[Round "1.3"]
[White "Cuartas, Jaime Alexander"]
[Black "Christodoulaki, Antonia"]
[Result "1-0"]
[ECO "D02"]
[WhiteElo "2513"]
[BlackElo "2067"]
[Annotator "TA"]
[PlyCount "73"]
[EventDate "2022.07.04"]
[EventType "swiss"]
[EventCountry "ESP"]
[SourceTitle "playchess.com"]
[Source "ChessBase"]
[SourceQuality "1"]
[TimeControl "5400+30"]

{[%evp 9,73,-1,0,-13,10,12,30,-36,-28,-46,-47,-67,-59,-63,-52,-56,-52,-68,-47,-39,11,-50,-25,-24,0,0,8,0,0,0,0,0,0,0,3,6,0,0,179,110,150,139,176,144,208,119,252,243,241,224,256,200,217,195,438,210,525,530,527,501,516,298,508,492,514,489]} 1. d4 {[%emt 0:01:48]} Nf6 {[%emt 0:00:15]} 2. Nf3 {[%emt 0:00:10]} e6 {[%emt 0:00:09]} 3. Bg5 {[%emt 0:00:24]} d5 {[%emt 0:00:34]} 4. Nbd2 {[%emt 0:00:15]} Be7 {[%emt 0:01:25]} 5. c3 {[%emt 0:00:25]} b6 {[%emt 0:03:02]} 6. Bxf6 {[%emt 0:01:02] D02: 1 d4 d5 2 Nf3 sidelines, including 2...Nf6 3 g3 and 2...Nf6 3 Bf4.} gxf6 {[%emt 0:00:32]} 7. e3 {[%emt 0:00:40]} Nd7 {[%emt 0:01:50] [#]} 8. g4 $146 {[%emt 0:02:37]} (8. c4 $11) ({Predecessor:} 8. Qc2 Bb7 9. Be2 f5 10. Ne5 Nf6 11. Bb5+ Kf8 12. Ndf3 Rg8 13. O-O-O c5 14. Qe2 {0-1 (30) Basilio,A-Camargo,A Americana 1996}) 8... Bb7 {[%emt 0:03:15]} 9. Bd3 {[%emt 0:03:54]} c5 {[%emt 0:03:07][%cal Bc7c5,Bc5c4][%mdl 32]} 10. h3 {[%emt 0:01:04]} Qc7 {[%emt 0:01:17]} 11. Qe2 {[%emt 0:00:38]} c4 {[%emt 0:05:29]} 12. Bc2 {[%emt 0:00:06]} b5 {[%emt 0:00:11]} 13. e4 {[%emt 0:03:46]} Nb6 {[%emt 0:03:39]} 14. e5 {[%emt 0:00:17]} b4 {[%emt 0:04:46]} ({Black should try} 14... a5 $15) 15. Nf1 {[%emt 0:07:07]} (15. exf6 $11 Bxf6 16. cxb4) 15... bxc3 {[%emt 0:05:10]} 16. bxc3 {[%emt 0:00:06]} Nd7 {[%emt 0:02:29] [#] Hoping for ...Qa5.} 17. Ba4 {[%emt 0:08:14]} Qa5 {[%emt 0:02:19]} 18. Qc2 {[%emt 0:00:33]} O-O-O {[%emt 0:05:10]} 19. Bxd7+ {[%emt 0:00:17]} Rxd7 {[%emt 0:02:08]} 20. Ng3 {[%emt 0:00:27]} Bc6 {[%emt 0:03:39]} 21. Rb1 {[%emt 0:01:49]} Rb7 $132 {[%emt 0:12:29][%mdl 2048] Black is not holding back} 22. O-O {[%emt 0:00:33]} Ba4 {[%emt 0:03:29]} 23. Qd2 {[%emt 0:00:16] And now exf6 would win.} Rb5 $2 {[%emt 0:02:58] [#]} (23... fxe5 $11 {and Black has nothing to worry.} 24. Nxe5 Rf8) 24. Nh5 {[%emt 0:06:33]} (24. exf6 $18 Bd6 25. Ne5) 24... f5 {[%emt 0:06:32]} 25. gxf5 {[%emt 0:01:52]} Rg8+ {[%emt 0:00:06]} 26. Kh2 {[%emt 0:00:20]} exf5 {[%emt 0:00:08]} (26... Rxb1 $16 27. Rxb1 exf5) 27. Ng3 {[%emt 0:03:52]} (27. Rg1 $18 Rg6 28. Nf4) 27... Rg6 {[%emt 0:04:50] This move loses the game for Black.} (27... Rxb1 $16 {was necessary.} 28. Rxb1 Bd7) 28. Nxf5 {[%emt 0:01:33]} Ba3 {[%emt 0:00:17]} 29. Rxb5 {[%emt 0:06:04] Chess con chili.} Qxb5 {[%emt 0:01:38]} 30. Ng5 {[%emt 0:21:50] Pair of Knights!} Qd7 {[%emt 0:06:22]} 31. Qf4 {[%emt 0:01:14][%cal Og5f7] Strongly threatening Nxf7!} f6 {[%emt 0:04:33]} (31... Bc2 32. Ne3 Bd3) 32. Nf3 {[%emt 0:01:32]} (32. e6 $142 Qc7 33. Qxc7+ Kxc7 34. Nxh7) 32... fxe5 $2 {[%emt 0:05:22]} (32... Bc2 {is tougher.}) 33. Nxe5 $18 {[%emt 0:00:34]} Qc7 {[%emt 0:00:38]} 34. Nxg6 {[%emt 0:00:52]} hxg6 {[%emt 0:00:02]} 35. Qxc7+ {[%emt 0:00:19]} Kxc7 {[%emt 0:00:01]} 36. Ne3 {[%emt 0:00:13]} Kd6 {[%emt 0:00:16]} 37. Rb1 {[%emt 0:00:40] Inhibits Bb2.  Weighted Error Value: White=0.26 (precise) /Black=0.48} 1-0

[Event "XLIV Barbera del Valles-A 2022"]
[Site "Barbera del Valles"]
[Date "2022.07.04"]
[Round "1.4"]
[White "Pimpalkhare Vedant"]
[Black "Pena Gomez, Manuel"]
[Result "1/2-1/2"]
[ECO "D02"]
[WhiteElo "2057"]
[BlackElo "2492"]
[Annotator "TA"]
[PlyCount "110"]
[EventDate "2022.07.04"]
[EventType "swiss"]
[EventCountry "ESP"]
[SourceTitle "playchess.com"]
[Source "ChessBase"]
[SourceQuality "1"]
[TimeControl "5400+30"]

{[%evp 10,110,19,18,16,13,12,8,41,40,43,33,61,63,83,71,91,0,0,0,0,-96,-103,-106,-97,-106,-101,-96,-110,-78,-97,-143,-162,-151,-89,-92,-81,-79,-86,-139,-80,-69,-25,-33,-31,-68,-10,-11,3,0,0,0,0,0,19,20,20,27,16,0,7,0,15,15,17,-5,-5,-5,-5,-5,0,0,0,-5,-5,-5,0,0,0,0,0,-29,-29,-29,-29,-29,-29,-29,-29,-29,0,-63,-63,-63,-63,-63,-63,-63,-63,-63,-63,-63,-63]} 1. d4 {[%emt 1:31:00]} Nf6 {[%emt 1:31:00]} 2. Nf3 {[%emt 0:00:30]} g6 {[%emt 0:00:30]} 3. Nbd2 {[%emt 0:00:30]} d5 {[%emt 0:00:30]} 4. e3 {[%emt 0:00:30]} Bg7 {[%emt 0:00:30]} 5. b4 {[%emt 0:00:30][%cal Bb2b4,Bb4b5][%mdl 32]} O-O {[%emt 0:00:30]} 6. c4 {[%emt 0:00:30]} c6 {[%emt 0:00:30] D02: 1 d4 d5 2 Nf3 sidelines, including 2...Nf6 3 g3 and 2...Nf6 3 Bf4.} 7. Be2 {[%emt 0:00:30]} a5 {[%emt 0:00:30]} 8. b5 {[%emt 0:00:30]} a4 {[%emt 0:00:30] The position is equal.} 9. Ba3 {[%emt 0:00:30]} Re8 {[%emt 0:00:30]} 10. O-O {[%emt 0:00:30] [#]} Bg4 $146 {[%emt 0:00:30]} ({Predecessor:} 10... Nbd7 11. Rc1 h6 12. Qc2 cxb5 13. cxd5 b4 14. Bxb4 Nxd5 15. Ba3 e5 16. dxe5 Nxe5 17. Nxe5 Bxe5 {1-0 (63) Ushenina,A (2440)-Abdumalik,Z (2470) St Petersburg 2018}) 11. bxc6 {[%emt 0:00:30]} Nxc6 {[%emt 0:00:30]} 12. Rb1 {[%emt 0:00:30]} Qc7 {[%emt 0:00:30]} 13. Qc2 {[%emt 0:00:30]} (13. Rb5 $16) 13... e5 $1 $11 {[%emt 0:00:30] ...exd4 is the strong threat.} 14. cxd5 {[%emt 0:00:30]} Nxd5 {[%emt 0:00:30][%cal Re5d4]} 15. dxe5 {[%emt 0:00:30] [#]} (15. Bc4 $11 {keeps the balance.} Bxf3 16. Nxf3) 15... Nd4 $1 $17 {[%emt 0:00:30]} 16. Nxd4 {[%emt 0:00:30]} Qxc2 {[%emt 0:00:30]} 17. Nxc2 {[%emt 0:00:30] Pair of Knights!} Bxe2 {[%emt 0:00:30]} 18. Rfc1 {[%emt 0:00:30]} Nc3 {[%emt 0:00:30]} 19. Rb2 {[%emt 0:00:30] Strongly threatening Nd4.} Bxe5 {[%emt 0:00:30]} 20. Nd4 {[%emt 0:00:30]} (20. Nb1 $142) 20... Bxd4 {[%emt 0:00:30]} 21. exd4 {[%emt 0:00:30] [#]} Ba6 $1 {[%emt 0:00:30]} 22. Kh1 {[%emt 0:00:30]} Nb5 {[%emt 0:00:30]} 23. Bc5 {[%emt 0:00:30]} Rac8 {[%emt 0:00:30] aiming for ...Nxd4.} 24. Ra1 {[%emt 0:00:30]} ({White should play} 24. Rbb1) 24... Re2 {[%emt 0:00:30]} ({Better is} 24... b6 25. Bxb6 a3) 25. Nc4 {[%emt 0:00:30]} Rce8 {[%emt 0:00:30] ( -> ...Re1+)} (25... Nxd4 $5 26. Bxd4 Bxc4 27. Rxe2 Bxe2 $17) 26. Rxe2 {[%emt 0:00:30]} Rxe2 {[%emt 0:00:30]} 27. f3 {[%emt 0:00:30] [#]} Nc3 {[%emt 0:00:30]} (27... Nxd4 $1 $15 28. Nb6 (28. Bxd4 Bxc4) 28... Nf5) 28. Nb6 $1 $11 {[%emt 0:00:30]} Bb5 {[%emt 0:00:30]} 29. a3 {[%emt 0:00:30]} Bc6 {[%emt 0:00:30]} 30. h4 {[%emt 0:00:30]} h6 {[%emt 0:00:30]} 31. Rc1 {[%emt 0:00:30]} Nd5 {[%emt 0:00:30]} (31... Na2 $5 {[%cal Ra2c1]} 32. Ra1 Nc3 $11) 32. Nxd5 {[%emt 0:00:30]} Bxd5 {[%emt 0:00:30][%mdl 4096] Endgame KRB-KRB} 33. Bb4 {[%emt 0:00:30]} Re8 {[%emt 0:00:30] Prevents Rc8.} 34. Kh2 {[%emt 0:00:30]} Kg7 {[%emt 0:00:30]} 35. Kg3 {[%emt 0:00:30]} g5 {[%emt 0:00:30]} 36. hxg5 {[%emt 0:00:30]} hxg5 {[%emt 0:00:30]} 37. Re1 {[%emt 0:00:30]} Rxe1 {[%emt 0:00:30]} 38. Bxe1 {[%emt 0:00:30] KB-KB} Kg6 {[%emt 0:00:30]} 39. Bb4 {[%emt 0:00:30]} Kf6 {[%emt 0:00:30]} 40. Kf2 {[%emt 0:00:30]} Ke6 {[%emt 0:00:30]} 41. g3 {[%emt 0:00:30]} Bc6 {[%emt 0:00:30]} 42. Ke3 {[%emt 0:00:30]} f5 {[%emt 0:00:30]} 43. f4 {[%emt 0:00:30]} g4 {[%emt 0:00:30]} 44. Bf8 {[%emt 0:00:30]} Kd5 {[%emt 0:00:30]} 45. Be7 {[%emt 0:00:30]} Kc4 {[%emt 0:00:30]} 46. Bf8 {[%emt 0:00:30]} Bd5 {[%emt 0:00:30]} 47. Bc5 {[%emt 0:00:30]} Kc3 {[%emt 0:00:30]} 48. Bb4+ {[%emt 0:00:30]} Kc2 {[%emt 0:00:30]} 49. Bc5 {[%emt 0:00:30]} Kd1 {[%emt 0:00:30]} 50. Kf2 {[%emt 0:00:30]} (50. Kd3 $11) 50... Kd2 $15 {[%emt 0:00:30] Black is slightly better.} 51. Bf8 {[%emt 0:00:30]} Kd3 {[%emt 0:00:30]} 52. Bc5 {[%emt 0:00:30]} b5 {[%emt 0:00:30]} 53. Bf8 {[%emt 0:00:30]} Bc4 {[%emt 0:00:30]} 54. Bc5 {[%emt 0:00:30]} Ke4 {[%emt 0:00:30]} 55. Bf8 {[%emt 0:00:30]} Kxd4 {Weighted Error Value: White=0.14 (very precise) /Black=0.09 (flawless)} 1/2-1/2

[Event "XLIV Barbera del Valles-A 2022"]
[Site "Barbera del Valles"]
[Date "2022.07.04"]
[Round "1.5"]
[White "Narciso Dublan, Marc"]
[Black "Ortiz Verdezoto, Anahi"]
[Result "1/2-1/2"]
[ECO "C45"]
[WhiteElo "2461"]
[BlackElo "2046"]
[Annotator "TA"]
[PlyCount "68"]
[EventDate "2022.07.04"]
[EventType "swiss"]
[EventCountry "ESP"]
[SourceTitle "playchess.com"]
[Source "ChessBase"]
[SourceQuality "1"]
[TimeControl "5400+30"]

{[%evp 17,68,-2,46,6,2,0,5,-34,-24,-19,-20,-64,-53,-56,-45,-100,-104,-145,-144,-147,-160,-143,-125,-136,-129,-132,-127,-145,-129,-205,-211,-208,-137,-191,-203,-225,-200,-182,-191,-229,-189,-183,-131,-195,-196,-200,-200,-235,-183,-179,-154,-154,-145]} 1. e4 {[%emt 0:00:08]} e5 {[%emt 0:00:14]} 2. Nf3 {[%emt 0:00:23]} Nc6 {[%emt 0:00:24]} 3. d4 {[%emt 0:00:41]} exd4 {[%emt 0:00:12]} 4. Nxd4 {[%emt 0:00:15]} Nf6 {[%emt 0:00:31]} 5. Nxc6 {[%emt 0:00:18]} bxc6 {[%emt 0:00:07]} 6. e5 {[%emt 0:02:10]} Qe7 {[%emt 0:00:23]} 7. Qe2 {[%emt 0:00:11]} Nd5 {[%emt 0:00:14]} 8. c4 {[%emt 0:01:30]} Ba6 {[%emt 0:00:28]} 9. Nd2 {[%emt 0:00:34]} Nf4 {[%emt 0:06:35]} (9... g6 $11 {feels stronger.}) 10. Qe4 {[%emt 0:11:02] C45: Scotch Game.} (10. Qe3 $5 {[%cal Re3f4]} Ng6 11. f4 $11) 10... Ne6 {[%emt 0:05:21]} 11. Be2 {[%emt 0:02:24]} g6 {[%emt 0:09:10]} 12. O-O {[%emt 0:01:51] The position is equal.} Bg7 {[%emt 0:07:39]} 13. Nf3 {[%emt 0:00:51]} O-O {[%emt 0:03:31] [#]} 14. Rd1 $146 {[%emt 0:09:05]} ({Predecessor:} 14. b3 f5 15. exf6 Qxf6 16. Rb1 Rae8 17. Bb2 Nf4 18. Bxf6 Rxe4 19. Bxg7 Nxe2+ 20. Kh1 Kxg7 21. Rfd1 d6 22. h3 Nc3 {0-1 (22) Brock,L (2396)-Matko,O (2302) Chess.com INT 2017}) 14... Rab8 {[%emt 0:04:09]} 15. Qd3 {[%emt 0:19:49]} Rfd8 {[%emt 0:03:40]} 16. Qc3 {[%emt 0:03:08]} (16. Qe3 $15) 16... c5 $17 {[%emt 0:04:38]} 17. Be3 {[%emt 0:03:29]} d6 {[%emt 0:13:31]} 18. Qa3 {[%emt 0:02:55]} Rb6 {[%emt 0:05:21]} 19. exd6 {[%emt 0:03:57]} Rdxd6 {[%emt 0:08:22]} 20. Rab1 {[%emt 0:07:44]} Rxd1+ {[%emt 0:04:27]} 21. Rxd1 {[%emt 0:06:37]} Bxb2 {[%emt 0:02:23]} 22. Qa4 {[%emt 0:00:09]} Nd4 {[%emt 0:08:17]} 23. Bf1 {[%emt 0:00:37] [#]} (23. Bxd4 $17 Bxd4 24. Bd3) 23... Nxf3+ $1 $19 {[%emt 0:04:06] Black is clearly better.} 24. gxf3 {[%emt 0:00:02]} Be5 {[%emt 0:02:09][%cal Oe5d4]} 25. f4 {[%emt 0:05:05] [#]} (25. Qd7 $17 {was called for.} Qxd7 26. Rxd7) 25... Bd6 $1 {[%emt 0:00:45]} 26. Bg2 {[%emt 0:00:25]} Bb7 {[%emt 0:01:46] ...Bxg2 is the strong threat.} 27. Bxb7 {[%emt 0:01:45]} Rxb7 {[%emt 0:00:01]} 28. Qc6 {[%emt 0:03:15]} Rb8 {[%emt 0:00:27]} 29. Qf3 {[%emt 0:01:34]} Qf6 {[%emt 0:01:45]} ({Better is} 29... Rb4 $19 30. Qd5 Qe6) 30. Kg2 {[%emt 0:03:04]} (30. h3 $17 {was necessary.}) 30... Rb4 {[%emt 0:03:25]} 31. Rc1 {[%emt 0:08:53]} Qe6 {[%emt 0:00:33]} 32. Qd5 {[%emt 0:01:07]} Qxd5+ {[%emt 0:01:13]} 33. cxd5 {[%emt 0:00:01]} c4 {[%emt 0:00:37]} ({Weaker is} 33... Bxf4 34. Rxc5 Bd6 35. Ra5 $17) 34. Bxa7 {[%emt 0:00:55]} Bxf4 {[%emt 0:00:28] Weighted Error Value: White=0.24 (precise) /Black=0.13 (very precise)} 1/2-1/2

[Event "XLIV Barbera del Valles-A 2022"]
[Site "Barbera del Valles"]
[Date "2022.07.04"]
[Round "1.6"]
[White "Perez Bolanos, David"]
[Black "Moskalenko, Viktor"]
[Result "1/2-1/2"]
[ECO "A10"]
[WhiteElo "2041"]
[BlackElo "2457"]
[Annotator "TA"]
[PlyCount "84"]
[EventDate "2022.07.04"]
[EventType "swiss"]
[EventCountry "ESP"]
[SourceTitle "playchess.com"]
[Source "ChessBase"]
[SourceQuality "1"]
[TimeControl "5400+30"]

{[%evp 15,84,54,47,55,64,45,61,43,62,60,64,60,83,32,27,-17,0,0,0,0,37,-41,21,8,16,0,0,0,0,3,0,0,12,-27,-6,-17,-15,-21,-6,-12,0,0,0,0,0,0,0,0,0,0,0,0,0,0,0,0,0,0,0,0,0,0,0,0,0,2,15,15,22,26,20]} 1. Nf3 {[%emt 1:31:00]} e6 {[%emt 1:31:00]} 2. g3 {[%emt 0:00:30]} f5 {[%emt 0:00:30]} 3. Bg2 {[%emt 0:00:30]} Nf6 {[%emt 0:00:30]} 4. O-O {[%emt 0:00:30]} d5 {[%emt 0:00:30]} 5. d3 {[%emt 0:00:30]} c6 {[%emt 0:00:30]} 6. c4 {[%emt 0:00:30]} Be7 {[%emt 0:00:30][%cal Bf8e7,Be7d6,Bd6c5][%mdl 32]} 7. b3 {[%emt 0:00:30]} O-O {[%emt 0:00:30]} 8. Bb2 {[%emt 0:00:30]} a5 {[%emt 0:00:30][%cal Oa5a4]} 9. Nc3 {[%emt 0:00:30] A10: English Opening: Unusual Replies for Black.} Na6 {[%emt 0:00:30]} 10. a3 {[%emt 0:00:30]} Ng4 {[%emt 0:00:30]} 11. e3 {[%emt 0:00:30] [#] White is slightly better.} Bd6 $146 {[%emt 0:00:30]} ({Predecessor:} 11... Nc5 12. h3 Nf6 13. b4 axb4 14. axb4 Rxa1 15. Bxa1 Ncd7 16. b5 Nc5 17. bxc6 bxc6 {1-0 (38) Sivuk,V (2547)-Moskalenko,V (2477) Platja d'Aro 2021}) 12. Qc2 {[%emt 0:00:30]} Qe7 {[%emt 0:00:30]} 13. Rfe1 {[%emt 0:00:30]} Bd7 {[%emt 0:00:30]} 14. cxd5 {[%emt 0:00:30]} (14. d4 $16) 14... cxd5 $14 {[%emt 0:00:30]} 15. e4 {[%emt 0:00:30]} fxe4 {[%emt 0:00:30]} 16. dxe4 {[%emt 0:00:30]} Bc5 {[%emt 0:00:30]} 17. Nd1 {[%emt 0:00:30] Hoping for exd5.} Bc6 {[%emt 0:00:30]} (17... Rac8 $5 {[%cal Rc5f2]} 18. Qe2 Qd6 $14) 18. e5 {[%emt 0:00:30]} (18. Nd4 $14 Qd7 19. e5) 18... Be8 {[%emt 0:00:30]} ({Better is} 18... Nh6 $15) 19. Nd4 $11 {[%emt 0:00:30]} Bg6 {[%emt 0:00:30]} 20. Qd2 {[%emt 0:00:30]} Bxd4 {[%emt 0:00:30]} 21. Bxd4 {[%emt 0:00:30]} Nc5 {[%emt 0:00:30]} 22. Bxc5 {[%emt 0:00:30]} Qxc5 {[%emt 0:00:30]} 23. h3 {[%emt 0:00:30]} Nh6 {[%emt 0:00:30]} 24. Ne3 {[%emt 0:00:30]} Nf5 {[%emt 0:00:30]} 25. Nxf5 {[%emt 0:00:30]} Bxf5 {[%emt 0:00:30]} 26. Rec1 {[%emt 0:00:30]} Qb6 {[%emt 0:00:30]} 27. b4 {[%emt 0:00:30]} axb4 {[%emt 0:00:30]} (27... h6 {is more complex.} 28. bxa5 Rxa5 29. Ra2 Rf7) 28. Qxb4 {[%emt 0:00:30]} Qxb4 {[%emt 0:00:30]} 29. axb4 {[%emt 0:00:30]} Rxa1 {[%emt 0:00:30]} 30. Rxa1 {[%emt 0:00:30][%mdl 4096] Endgame KRB-KRB} Rc8 {[%emt 0:00:30]} 31. Ra7 {[%emt 0:00:30]} b5 {[%emt 0:00:30]} 32. Rb7 {[%emt 0:00:30]} Bd3 {[%emt 0:00:30]} 33. Bf3 {[%emt 0:00:30]} Rc1+ {[%emt 0:00:30]} 34. Kg2 {[%emt 0:00:30]} Bf1+ {[%emt 0:00:30]} 35. Kh2 {[%emt 0:00:30]} Re1 {[%emt 0:00:30]} 36. Bg4 {[%emt 0:00:30]} Rxe5 {[%emt 0:00:30]} 37. Re7 {[%emt 0:00:30]} Kf8 {[%emt 0:00:30]} 38. Rxe6 {[%emt 0:00:30]} Rxe6 {[%emt 0:00:30]} 39. Bxe6 {[%emt 0:00:30]} d4 {[%emt 0:00:30] [#] White must now prevent ...Be2.} 40. Kg1 {[%emt 0:00:30]} Bd3 {[%emt 0:00:30]} 41. f4 {[%emt 0:00:30]} Ke7 {[%emt 0:00:30]} 42. Bd5 {[%emt 0:00:30]} Kd6 {[%emt 0:00:30] Weighted Error Value: White=0.11 (very precise) /Black=0.08 (flawless)} 1/2-1/2